fUSD/lending_fUSD_20260315
["ID","MTS","AMOUNT","RATE_DAILY","PERIOD"]
[408404179,1773570642940,-151.0,0.0002,2]
[408404180,1773570642949,-155.372088,0.0002,2]
[408404181,1773570642959,-151.0,0.0002,2]
[408404182,1773570642969,-151.0,0.0002,2]
[408404183,1773570642979,-151.0,0.0002,2]
[408404184,1773570642990,-151.0,0.0002,2]
[408404185,1773570643001,-262.185,0.0002,2]
[408404186,1773570643011,-262.185,0.0002,2]
[408404187,1773570643022,-262.185,0.0002,2]
[408404188,1773570643032,-262.185,0.0002,2]
[408404189,1773570643042,-956.0,0.00020002,2]
[408404190,1773570643052,-956.0,0.00020036,2]
[408404191,1773570643061,-956.0,0.0002012,2]
[408404192,1773570643070,-6812.9368064,0.00020141,2]
[408404193,1773570643079,-200.0,0.000202,2]
[408404194,1773570643088,-956.0,0.00020233,2]
[408404195,1773570643098,-210.0,0.00020291,7]
[408404196,1773570643107,-956.0,0.00020323,2]
[408404197,1773570643116,-956.0,0.00020334,2]
[408404198,1773570643126,-956.0,0.00020347,2]
[408404199,1773570643136,-956.0,0.00020482,2]
[408404200,1773570643146,-158.0,0.00020488,3]
[408404201,1773570643155,-158.72,0.00020548,2]
[408404202,1773570643164,-956.0,0.00020562,2]
[408404203,1773570643177,-956.0,0.00020565,2]
[408404204,1773570643186,-341.0,0.000206,7]
[408404205,1773570643196,-213.0,0.000206,7]
[408404206,1773570643205,-2000.0,0.000208,2]
[408404207,1773570643215,-400.0,0.00021,2]
[408404208,1773570643224,-956.0,0.00021055,2]
[408404209,1773570643234,-956.0,0.0002109,2]
[408404210,1773570643246,-9035.0,0.00021255,2]
[408404211,1773570643255,-956.0,0.00021311,2]
[408404212,1773570643264,-956.0,0.00021455,2]
[408404213,1773570643273,-518.0,0.000215,6]
[408404214,1773570643283,-956.0,0.0002151,2]
[408404215,1773570643292,-956.0,0.0002153,2]
[408404216,1773570643301,-956.0,0.0002155,2]
[408404217,1773570643310,-956.0,0.00021601,2]
[408404218,1773570643320,-373.56103098,0.00021639,2]
[408404219,1773570643329,-956.0,0.0002164,2]
[408404220,1773570643338,-956.0,0.00021702,2]
[408404221,1773570643347,-956.0,0.0002175,2]
[408404222,1773570643358,-956.0,0.00021859,2]
[408404223,1773570643367,-956.0,0.00021862,2]
[408404224,1773570643376,-2500.0,0.00021917,2]
[408404225,1773570643387,-2500.0,0.00021917,2]
[408404226,1773570643398,-2500.0,0.00021917,2]
[408404227,1773570643408,-2500.0,0.00021917,2]
[408404228,1773570643417,-2500.0,0.00021917,2]
[408404229,1773570643426,-2500.0,0.00021917,2]
[408404230,1773570643436,-1445.1719844,0.00021917,2]
[408404231,1773570643447,-156.95,0.00021918,2]
[408404233,1773570643457,-151.0,0.00021918,2]
[408404235,1773570643466,-5000.0,0.00021918,2]
[408404237,1773570643475,-151.0,0.00021918,2]
[408404239,1773570643486,-956.0,0.00021943,2]
[408404240,1773570643496,-500.0,0.00021973,2]
[408404242,1773570643506,-956.0,0.00022038,2]
[408404244,1773570643516,-150.41,0.00022175,2]
[408404246,1773570643525,-150.0,0.00022175,2]
[408404247,1773570643534,-150.196,0.00022175,2]
[408404249,1773570643544,-1043.0,0.00022444,2]
[408404251,1773570643554,-3436.312,0.00022444,2]
[408404254,1773570643564,-1343.0,0.00022445,2]
[408404255,1773570643573,-300.0,0.00022466,2]
[408404256,1773570643582,-119105.3813762,0.00022467,2]
[408404257,1773570643591,-155.911522,0.00022467,2]
[408404258,1773570643601,-151.0,0.00022467,2]
[408404259,1773570643610,-182.339934,0.00022467,2]
[408404260,1773570643619,-166.66,0.00022603,2]
[408404261,1773570643628,-171.414775,0.00022705,2]
[408404262,1773570643638,-154.709285,0.00022705,2]
[408404263,1773570643647,-151.0,0.00022705,2]
[408404264,1773570643656,-151.0,0.00022705,2]
[408404265,1773570643666,-151.0,0.00022705,2]
[408404266,1773570643675,-151.0,0.00022705,2]
[408404267,1773570643684,-151.00001,0.00022705,2]
[408404268,1773570643694,-193.975735,0.00022705,2]
[408404269,1773570643703,-1284.339,0.00022705,2]
[408404270,1773570643713,-1350.051,0.00022705,2]
[408404271,1773570643721,-923.0,0.00022705,2]
[408404272,1773570643731,-4917.25,0.00022762,2]
[408404273,1773570643740,-262.185,0.00022762,2]
[408404274,1773570643749,-262.185,0.00022762,2]
[408404275,1773570643759,-262.185,0.00022762,2]
[408404276,1773570643768,-262.185,0.00022762,2]
[408404277,1773570643778,-158.0,0.00022767,3]
[408404278,1773570643788,-16723.0971258,0.00022811,2]
[408404279,1773570643797,-195.10725217,0.0002287,2]
[408404280,1773570643806,-150.03194953,0.00022955,2]
[408404281,1773570643815,-450.0,0.00023,2]
[408404282,1773570643824,-3421.670701,0.00023004,30]
[408404283,1773570643834,-157.4552258,0.00023033,2]
[408404284,1773570643843,-26576.002821,0.00023033,2]
[408404285,1773570643852,-161.5384167,0.00023038,2]
[408404286,1773570643861,-1500.0,0.00023134,2]
[408404287,1773570643871,-159.0,0.00023223,3]
[408404288,1773570643881,-12649.0,0.0002338,2]
[408404289,1773570643890,-207.0,0.0002364,2]
[408404290,1773570643900,-510.35322,0.00023721,30]
[408404291,1773570643909,-471.87,0.00023823,2]
[408404292,1773570643919,-210.0,0.00023857,2]
[408404293,1773570643928,-4564.0,0.000241,2]
[408404294,1773570643938,-471.87,0.0002422,2]
[408404295,1773570643948,-6812.9368064,0.00024257,2]
[408404296,1773570643957,-500.0,0.00024411,2]
[408404297,1773570643966,-2000.0,0.000245,2]
[408404298,1773570643975,-5533.0,0.000246,3]
[408404299,1773570643984,-471.87,0.00024617,2]
[408404300,1773570643993,-377.0,0.00024639,2]
[408404301,1773570644003,-1000.0,0.00024658,2]
[408404302,1773570644012,-278.97,0.00024658,2]
[408404303,1773570644025,-150.0,0.00024658,2]
[408404304,1773570644036,-2651.95954893,0.00024769,4]
[408404305,1773570644049,-300.0,0.00024899,10]
[408404306,1773570644058,-685.06941575,0.00024899,2]
[408404307,1773570644068,-199662.877411,0.000249,3]
[408404308,1773570644077,-150.0,0.00025,2]
[408404309,1773570644088,-1119.1827055,0.00025,2]
[408404310,1773570644097,-208.49204698,0.00025,2]
[408404311,1773570644107,-1793.29856408,0.00025,2]
[408404312,1773570644117,-540.0,0.00025,2]
[408404313,1773570644127,-613.71167137,0.00025,2]
[408404314,1773570644136,-501.40106128,0.00025,30]
[408404315,1773570644146,-500.0,0.00025,30]
[408404316,1773570644156,-500.0,0.00025,30]
[408404317,1773570644165,-500.0,0.00025,30]
[408404318,1773570644179,-500.0,0.00025,30]
[408404319,1773570644189,-500.0,0.00025,30]
[408404320,1773570644199,-500.0,0.00025,30]
[408404321,1773570644208,-500.0,0.00025,30]
[408404322,1773570644219,-500.0,0.00025,30]
[408404323,1773570644229,-500.0,0.00025,30]
[408404324,1773570644239,-500.0,0.00025,30]
[408404325,1773570644249,-500.0,0.00025,30]
[408404326,1773570644264,-500.0,0.00025,30]
[408404327,1773570644282,-500.0,0.00025,30]
[408404328,1773570644292,-500.0,0.00025,30]
[408404329,1773570644301,-500.0,0.00025,30]
[408404330,1773570644310,-500.0,0.00025,30]
[408404331,1773570644320,-500.0,0.00025,30]
[408404332,1773570644442,-500.0,0.00025,30]
[408404333,1773570644453,-500.0,0.00025,30]
[408404334,1773570644462,-909.53474774,0.00025,30]
[408404335,1773570644472,-500.0,0.00025,30]
[408404336,1773570644481,-500.0,0.00025,30]
[408404337,1773570644490,-500.0,0.00025,30]
[408404338,1773570644499,-500.0,0.00025,30]
[408404339,1773570644508,-500.0,0.00025,30]
[408404340,1773570644518,-500.0,0.00025,30]
[408404341,1773570644527,-500.0,0.00025,30]
[408404342,1773570644536,-500.0,0.00025,30]
[408404343,1773570644545,-500.0,0.00025,30]
[408404344,1773570644555,-500.0,0.00025,30]
[408404345,1773570644563,-500.0,0.00025,30]
[408404346,1773570644572,-500.0,0.00025,30]
[408404347,1773570644581,-500.0,0.00025,30]
[408404348,1773570644590,-469.87233333,0.00025,30]
[408404349,1773570644599,-500.0,0.00025,30]
[408404350,1773570644608,-168.09158122,0.00025,2]
[408404351,1773570644617,-469.87233333,0.00025,30]
[408404352,1773570644628,-500.0,0.00025,30]
[408404353,1773570644636,-500.0,0.00025,30]
[408404354,1773570644646,-500.0,0.00025,30]
[408404355,1773570644655,-500.0,0.00025,30]
[408404356,1773570644664,-500.0,0.00025,30]
[408404357,1773570644674,-500.0,0.00025,30]
[408404358,1773570644684,-500.0,0.00025,30]
[408404359,1773570644693,-500.0,0.00025,30]
[408404360,1773570644702,-500.0,0.00025,30]
[408404361,1773570644713,-500.0,0.00025,30]
[408404362,1773570644723,-500.0,0.00025,30]
[408404363,1773570644732,-500.0,0.00025,30]
[408404364,1773570644742,-500.0,0.00025,30]
[408404365,1773570644751,-500.0,0.00025,30]
[408404366,1773570644761,-500.0,0.00025,30]
[408404367,1773570644771,-500.0,0.00025,30]
[408404368,1773570644780,-500.0,0.00025,30]
[408404369,1773570644789,-500.0,0.00025,30]
[408404370,1773570644799,-500.0,0.00025,30]
[408404371,1773570644807,-500.0,0.00025,30]
[408404372,1773570644817,-500.0,0.00025,30]
[408404373,1773570644826,-500.0,0.00025,30]
[408404374,1773570644836,-500.0,0.00025,30]
[408404375,1773570644845,-500.0,0.00025,30]
[408404376,1773570644854,-500.0,0.00025,30]
[408404377,1773570644863,-500.0,0.00025,30]
[408404378,1773570644873,-500.0,0.00025,2]
[408404379,1773570644882,-469.87233333,0.00025,3]
[408404380,1773570644892,-5533.0,0.00025,5]
[408404381,1773570644902,-244.26658027,0.00025014,2]
[408404382,1773570644911,-471.87413767,0.00025014,2]
[408404383,1773570644921,-158.0,0.00025046,3]
[408404384,1773570644931,-463.0,0.00025164,10]
[408404385,1773570644940,-15966.0,0.00025164,10]
[408404386,1773570644950,-156.95,0.00025342,2]
[408404387,1773570644960,-1043.0,0.00025444,2]
[408404388,1773570644969,-1343.0,0.00025445,2]
[408404389,1773570644978,-166.66,0.00025548,2]
[408404390,1773570644987,-1260.0,0.00025705,2]
[408404391,1773570644995,-923.0,0.00025705,2]
[408404392,1773570645005,-2555.0,0.00025718,2]
[408404393,1773570645014,-150.0,0.0002589,2]
[408404394,1773570645024,-469.87233333,0.00026,10]
[408404395,1773570645033,-518.0,0.00026,10]
[408404396,1773570645043,-8129.38913595,0.00026133,23]
[408404397,1773570645053,-373.56103098,0.00026455,2]
[408404398,1773570645063,-360.76078522,0.00026455,2]
[408404399,1773570645073,-2341.85376606,0.00026455,2]
[408404400,1773570645082,-202.0987232,0.00026846,5]
[408404401,1773570645091,-500.0,0.00026981,2]
[408404402,1773570645102,-250.0,0.00026981,2]
[408404403,1773570645111,-250.0,0.00026981,2]
[408404404,1773570645120,-250.0,0.00026981,2]
[408404405,1773570645129,-250.0,0.00026981,2]
[408404406,1773570645138,-250.0,0.00026981,2]
[408404407,1773570645148,-279.33639356,0.00026981,2]
[408404408,1773570645158,-1500.0,0.00026981,2]
[408404409,1773570645168,-1500.0,0.00026981,2]
[408404410,1773570645178,-1500.0,0.00026981,2]
[408404411,1773570645187,-1500.0,0.00026981,2]
[408404412,1773570645199,-500.0,0.00026981,2]
[408404413,1773570645209,-1500.0,0.00026981,2]
[408404414,1773570645219,-500.0,0.00026981,2]
[408404415,1773570645229,-1500.0,0.00026981,2]
[408404416,1773570645239,-500.0,0.00026981,2]
[408404417,1773570645250,-1500.0,0.00026981,2]
[408404418,1773570645260,-500.0,0.00026981,2]
[408404419,1773570645269,-1500.0,0.00026981,2]
[408404420,1773570645279,-500.0,0.00026981,2]
[408404421,1773570645288,-250.0,0.00026981,2]
[408404422,1773570645298,-1500.0,0.00026981,2]
[408404423,1773570645308,-500.0,0.00026981,2]
[408404424,1773570645319,-171.86459985,0.00026981,2]
[408404425,1773570645329,-243.57435302,0.00026981,2]
[408404426,1773570645341,-1500.0,0.00026981,2]
[408404427,1773570645350,-500.0,0.00026981,2]
[408404428,1773570645360,-1500.0,0.00026981,2]
[408404429,1773570645370,-500.0,0.00026981,2]
[408404430,1773570645379,-500.0,0.00026981,2]
[408404431,1773570645389,-500.0,0.00026981,2]
[408404432,1773570645398,-151.0,0.00026981,2]
[408404433,1773570645408,-500.0,0.00026981,2]
[408404434,1773570645418,-174.61919141,0.00026981,2]
[408404435,1773570645428,-200.0,0.00026981,2]
[408404436,1773570645438,-500.0,0.00026981,2]
[408404437,1773570645449,-500.0,0.00026981,2]
[408404438,1773570645459,-500.0,0.00026981,2]
[408404439,1773570645469,-500.0,0.00026981,2]
[408404440,1773570645479,-500.0,0.00026981,2]
[408404441,1773570645489,-500.0,0.00026981,2]
[408404442,1773570645498,-500.0,0.00026981,2]
[408404443,1773570645508,-500.0,0.00026981,2]
[408404444,1773570645518,-500.0,0.00026981,2]
[408404445,1773570645527,-500.0,0.00026981,2]
[408404446,1773570645537,-500.0,0.00026981,2]
[408404447,1773570645547,-194.905143,0.00027,2]
[408404448,1773570645556,-500.0,0.00027036,2]
[408404449,1773570645566,-151.0,0.00027036,2]
[408404450,1773570645575,-500.0,0.00027091,2]
[408404451,1773570645585,-151.0,0.00027091,2]
[408404452,1773570645594,-500.0,0.00027146,2]
[408404453,1773570645604,-151.0,0.00027146,2]
[408404454,1773570645613,-150.0,0.00027185,2]
[408404455,1773570645623,-500.0,0.00027201,2]
[408404456,1773570645633,-151.0,0.00027201,2]
[408404457,1773570645642,-500.0,0.00027256,2]
[408404458,1773570645652,-151.0,0.00027256,2]
[408404459,1773570645662,-500.0,0.00027311,2]
[408404460,1773570645671,-151.0,0.00027311,2]
[408404461,1773570645681,-158.0,0.00027326,3]
[408404462,1773570645690,-500.0,0.00027366,2]
[408404463,1773570645700,-151.0,0.00027366,2]
[408404464,1773570645709,-151.0,0.00027394,7]
[408404465,1773570645719,-1000.0,0.00027397,20]
[408404466,1773570645729,-153.337539,0.00027397,2]
[408404467,1773570645740,-300.0,0.00027397,2]
[408404468,1773570645749,-278.97,0.00027397,2]
[408404469,1773570645759,-151.0,0.00027397,2]
[408404470,1773570645769,-151.0,0.00027397,2]
[408404471,1773570645779,-151.0,0.00027397,2]
[408404472,1773570645789,-151.0,0.00027397,2]
[408404473,1773570645798,-151.0,0.00027397,2]
[408404474,1773570645808,-151.0,0.00027397,2]
[408404475,1773570645819,-151.0,0.00027397,2]
[408404476,1773570645830,-151.0,0.00027397,2]
[408404477,1773570645840,-151.0,0.00027397,2]
[408404478,1773570645851,-32914.88,0.00027397,10]
[408404479,1773570645862,-500.0,0.00027421,2]
[408404481,1773570645872,-151.0,0.00027421,2]
[408404482,1773570645881,-500.0,0.00027476,2]
[408404483,1773570645892,-151.0,0.00027476,2]
[408404484,1773570645902,-181.08010149,0.00027529,2]
[408404485,1773570645913,-205.95595585,0.00027529,2]
[408404487,1773570645923,-500.0,0.00027531,2]
[408404488,1773570645933,-151.0,0.00027531,2]
[408404489,1773570645943,-370.20718385,0.0002763,2]
[408404490,1773570645952,-303.0,0.00027699,2]
[408404491,1773570645962,-469.87233333,0.00028,10]
[408404492,1773570645973,-2000.0,0.000282,2]
[408404493,1773570645982,-6812.9368064,0.00028373,2]
[408404494,1773570645992,-1043.0,0.00028444,2]
[408404495,1773570646002,-166.66,0.00028493,2]
[408404496,1773570646013,-172.9990431,0.00028503,2]
[408404497,1773570646023,-1260.0,0.00028705,2]
[408404498,1773570646033,-923.0,0.00028705,2]
[408404499,1773570646043,-497.25498154,0.00028767,2]
[408404500,1773570646053,-156.95,0.00028767,2]
[408404501,1773570646063,-469.87233333,0.000288,10]
[408404502,1773570646073,-159.0,0.00029149,3]
[408404503,1773570646082,-2315.0,0.0002932,5]
[408404504,1773570646092,-158.0,0.00029605,3]
[408404505,1773570646102,-3891.47629182,0.00029827,33]
[408404506,1773570646112,-734.0,0.0003,2]
[408404507,1773570646124,-500.0,0.00030137,2]
[408404508,1773570646136,-200.0,0.00030137,2]
[408404509,1773570646146,-278.97,0.00030137,2]
[408404510,1773570646156,-170.7,0.000302,7]
[408404511,1773570646165,-179.82,0.000302,7]
[408404512,1773570646177,-518.0,0.000305,14]
[408404513,1773570646186,-8865.64882544,0.0003078,36]
[408404514,1773570646196,-373.56103098,0.0003127,2]
[408404515,1773570646205,-665.474,0.00031444,2]
[408404516,1773570646216,-923.0,0.00031705,2]
[408404517,1773570646225,-158.0,0.00031884,3]
[408404518,1773570646235,-1849.0,0.00031884,5]
[408404519,1773570646245,-1864.0,0.00031884,5]
[408404520,1773570646255,-2000.0,0.000319,2]
[408404521,1773570646264,-367.0,0.00032,2]
[408404522,1773570646274,-156.95,0.00032192,2]
[408404523,1773570646283,-6812.9368064,0.00032489,2]
[408404524,1773570646293,-152.0,0.00032642,3]
[408404525,1773570646302,-229.26538091,0.0003287,2]
[408404526,1773570646311,-12691.02240842,0.00032876,120]
[408404527,1773570646320,-278.97,0.00032877,2]
[408404528,1773570646329,-151.0,0.00032877,7]
[408404529,1773570646338,-151.0,0.00032877,7]
[408404530,1773570646349,-151.0,0.00032877,7]
[408404531,1773570646359,-151.0,0.00032877,7]
[408404532,1773570646369,-159.64861887,0.00032877,2]
[408404533,1773570646378,-469.87233333,0.000329,120]
[408404534,1773570646388,-564.086424,0.00033,14]
[408404535,1773570646398,-1100.67,0.00033,30]
[408404536,1773570646408,-1263.99,0.00033,14]
[408404537,1773570646418,-154.67821271,0.00033,2]
[408404538,1773570646428,-1220.19450316,0.000335,2]
[408404539,1773570646438,-172.0,0.000338,2]
[408404540,1773570646448,-3975.35,0.000338,2]
[408404541,1773570646457,-150.80042107,0.00033867,2]
[408404543,1773570646467,-172.0,0.0003388,2]
[408404544,1773570646477,-150.03194953,0.000339,2]
[408404545,1773570646488,-230.44110645,0.00033983,2]
[408404546,1773570646498,-469.87233333,0.00034,120]
[408404547,1773570646507,-170000.0,0.00034,120]
[408404548,1773570646516,-1198.06,0.00034,120]
[408404549,1773570646525,-368.0,0.00034,2]
[408404550,1773570646534,-151.0,0.00034,7]
[408404551,1773570646543,-1036.41647218,0.00034,7]
[408404552,1773570646552,-4917.25,0.00034017,2]
[408404553,1773570646564,-158.0,0.00034163,3]
[408404554,1773570646573,-1744.0372401,0.0003449,2]
[408404555,1773570646583,-923.0,0.00034705,2]
[408404556,1773570646592,-1500.0,0.00034795,2]
[408404557,1773570646601,-32418.15653861,0.0003488,120]
[408404558,1773570646610,-651.54591552,0.0003497,2]
[408404559,1773570646620,-2818.06091823,0.00035,30]
[408404560,1773570646629,-9634.86548966,0.00035,30]
[408404561,1773570646638,-239789.89690605,0.00035,4]
[408404562,1773570646647,-1931.54301462,0.00035,2]
[408404563,1773570646655,-9287.54430534,0.00035,30]
[408404564,1773570646664,-469.87233333,0.00035,120]
[408404565,1773570646674,-469.87233333,0.00035,30]
[408404567,1773570646683,-518.0,0.00035,18]
[408404568,1773570646691,-200.42058914,0.00035,3]
[408404570,1773570646700,-159.0,0.00035074,3]
[408404571,1773570646709,-152.0,0.00035397,3]
[408404572,1773570646718,-2022.0,0.000354,7]
[408404573,1773570646727,-9157.27860388,0.00035426,52]
[408404574,1773570646736,-172.87239416,0.00035589,120]
[408404575,1773570646745,-172.87239417,0.00035589,120]
[408404576,1773570646755,-25000.0,0.0003559,10]
[408404577,1773570646763,-25000.0,0.00035598,10]
[408404578,1773570646773,-2000.0,0.000356,2]
[408404579,1773570646782,-25000.0,0.00035607,10]
[408404580,1773570646791,-25000.0,0.00035616,10]
[408404581,1773570646800,-4112.5188394,0.00035616,10]
[408404582,1773570646811,-150.0,0.00035616,20]
[408404583,1773570646820,-557.7037666,0.00035616,7]
[408404584,1773570646829,-557.7037666,0.00035616,7]
[408404585,1773570646838,-557.7037666,0.00035616,7]
[408404586,1773570646943,-557.7037666,0.00035616,7]
[408404587,1773570646963,-557.7037666,0.00035616,7]
[408404588,1773570646973,-557.7037666,0.00035616,7]
[408404589,1773570646983,-557.7037666,0.00035616,7]
[408404590,1773570646991,-557.7037666,0.00035616,7]
[408404591,1773570647000,-557.7037666,0.00035616,7]
[408404592,1773570647009,-557.7037666,0.00035616,7]
[408404593,1773570647018,-557.7037666,0.00035616,7]
[408404594,1773570647028,-557.7037666,0.00035616,7]
[408404595,1773570647037,-557.7037666,0.00035616,7]
[408404596,1773570647046,-557.7037666,0.00035616,7]
[408404597,1773570647054,-557.7037666,0.00035616,7]
[408404598,1773570647063,-500.0,0.00035616,7]
[408404599,1773570647073,-291.17076125,0.00035616,7]
[408404600,1773570647082,-557.7037666,0.00035616,7]
[408404601,1773570647091,-557.7037666,0.00035616,7]
[408404602,1773570647100,-557.7037666,0.00035616,7]
[408404603,1773570647110,-557.7037666,0.00035616,7]
[408404604,1773570647119,-568.85784192,0.00035616,7]
[408404605,1773570647128,-568.85784192,0.00035616,7]
[408404606,1773570647137,-568.85784192,0.00035616,7]
[408404607,1773570647146,-568.85784192,0.00035616,7]
[408404608,1773570647155,-568.85784192,0.00035616,7]
[408404609,1773570647165,-568.85784192,0.00035616,7]
[408404610,1773570647177,-568.85784192,0.00035616,7]
[408404611,1773570647187,-568.85784192,0.00035616,7]
[408404612,1773570647196,-568.85784192,0.00035616,7]
[408404613,1773570647206,-568.85784192,0.00035616,7]
[408404614,1773570647216,-156.95,0.00035616,2]
[408404615,1773570647225,-278.97,0.00035616,2]
[408404616,1773570647234,-4323.36422015,0.00035736,53]
[408404617,1773570647244,-1100.67,0.000359,30]
[408404618,1773570647253,-1263.99,0.000359,14]
[408404619,1773570647262,-817.25747429,0.00036,2]
[408404620,1773570647272,-1706.44109218,0.00036,2]
[408404621,1773570647281,-100003.99929952,0.00036,120]
[408404622,1773570647290,-469.87233333,0.00036,7]
[408404623,1773570647299,-373.56103098,0.00036085,2]
[408404624,1773570647308,-2216.116,0.00036399,45]
[408404625,1773570647317,-158.0,0.00036442,3]
[408404626,1773570647326,-246.1232,0.000365,30]
[408404627,1773570647335,-6812.9368064,0.00036605,2]
[408404628,1773570647345,-8380.5344261,0.00036618,5]
[408404629,1773570647354,-246.1232,0.000367,30]
[408404630,1773570647363,-152.0,0.00036774,4]
[408404631,1773570647372,-1622.84019448,0.000368,2]
[408404632,1773570647382,-2000.0,0.000368,7]
[408404633,1773570647391,-1050.40077379,0.00036822,30]
[408404634,1773570647400,-820.4106,0.00036888,7]
[408404635,1773570647409,-246.1232,0.000369,30]
[408404636,1773570647418,-365.0,0.00037,2]
[408404637,1773570647428,-365.16735292,0.00037,3]
[408404638,1773570647437,-166.95214714,0.00037,2]
[408404639,1773570647446,-246.1232,0.000371,30]
[408404640,1773570647455,-3975.35,0.000372,2]
[408404641,1773570647464,-186.71753907,0.000372,120]
[408404642,1773570647474,-246.1232,0.000373,30]
[408404643,1773570647483,-246.1232,0.000375,30]
[408404644,1773570647492,-246.1232,0.000377,30]
[408404645,1773570647502,-294.789,0.00037705,2]
[408404646,1773570647511,-203.7219116,0.0003788,2]
[408404647,1773570647521,-151.0,0.0003788,7]
[408404648,1773570647530,-151.0,0.0003788,7]
[408404649,1773570647539,-153.01162946,0.000379,120]
[408404650,1773570647548,-246.1232,0.000379,30]
[408404651,1773570647557,-7234.83414539,0.00038,30]
[408404652,1773570647567,-30000.0,0.00038,120]
[408404653,1773570647576,-296.57517427,0.000381,33]
[408404654,1773570647585,-246.1232,0.000381,30]
[408404655,1773570647594,-513.86473282,0.000383,30]
[408404656,1773570647603,-246.1232,0.000383,30]
[408404657,1773570647612,-500.0,0.00038463,2]
[408404658,1773570647621,-500.0,0.00038463,2]
[408404659,1773570647630,-500.0,0.00038463,2]
[408404660,1773570647639,-500.0,0.00038463,2]
[408404661,1773570647647,-500.0,0.00038463,2]
[408404662,1773570647656,-500.0,0.00038463,2]
[408404663,1773570647666,-500.0,0.00038463,2]
[408404664,1773570647675,-500.0,0.00038463,2]
[408404665,1773570647684,-500.0,0.00038463,2]
[408404666,1773570647693,-500.0,0.00038463,2]
[408404667,1773570647702,-500.0,0.00038463,2]
[408404668,1773570647710,-500.0,0.00038463,2]
[408404669,1773570647719,-500.0,0.00038463,2]
[408404670,1773570647728,-500.0,0.00038463,2]
[408404671,1773570647738,-500.0,0.00038463,2]
[408404672,1773570647746,-500.0,0.00038463,2]
[408404673,1773570647755,-500.0,0.00038463,2]
[408404674,1773570647764,-500.0,0.00038463,2]
[408404675,1773570647773,-500.0,0.00038463,2]
[408404676,1773570647782,-500.0,0.00038463,2]
[408404677,1773570647791,-500.0,0.00038463,2]
[408404678,1773570647800,-500.0,0.00038463,2]
[408404679,1773570647808,-500.0,0.00038463,2]
[408404680,1773570647817,-500.0,0.00038463,2]
[408404681,1773570647826,-500.0,0.00038463,2]
[408404682,1773570647835,-500.0,0.00038463,2]
[408404683,1773570647844,-500.0,0.00038463,2]
[408404684,1773570647853,-500.0,0.00038463,2]
[408404685,1773570647862,-500.0,0.00038463,2]
[408404686,1773570647871,-500.0,0.00038463,2]
[408404687,1773570647880,-500.0,0.00038463,2]
[408404688,1773570647890,-500.0,0.00038463,2]
[408404689,1773570647899,-500.0,0.00038463,2]
[408404690,1773570647908,-500.0,0.00038463,2]
[408404691,1773570647917,-500.0,0.00038463,2]
[408404692,1773570647925,-500.0,0.00038463,2]
[408404693,1773570647935,-500.0,0.00038463,2]
[408404694,1773570647944,-500.0,0.00038463,2]